[Event "2nd Guotai Cup Belt Road 2019"]
[Site "Qinhuangdao"]
[Date "2019.04.16"]
[Round "1.3"]
[White "Yilmaz, Mustafa"]
[Black "Wu, huanghui"]
[Result "1-0"]
[ECO "D35"]
[WhiteElo "2631"]
[BlackElo "2217"]
[Annotator "RC"]
[PlyCount "137"]
[EventDate "2019.04.16"]
[EventType "swiss"]
[EventCountry "CHN"]
[SourceTitle "playchess.com"]
[Source "ChessBase"]
[SourceQuality "1"]
[TimeControl "5400+30"]

1. c4 {[%emt 0:00:00]} e6 {[%emt 0:00:00]} 2. Nc3 {[%emt 0:00:00]} d5 {[%emt 0:00:55]} 3. d4 {[%emt 0:00:04]} Nf6 {[%emt 0:00:27]} 4. cxd5 {[%emt 0:00:06]} exd5 {[%emt 0:01:45]} 5. Bg5 {[%emt 0:00:05]} c6 {[%emt 0:02:45]} 6. e3 {[%emt 0:00:35]} h6 {[%emt 0:02:42]} 7. Bh4 {[%emt 0:00:36]} Bf5 {[%emt 0:01:24]} 8. Qf3 {[%emt 0:01:50]} Bg6 {[%emt 0:02:42]} 9. Bxf6 {[%emt 0:00:16]} Qxf6 {[%emt 0:00:43]} 10. Qxf6 {[%emt 0:00:06]} gxf6 {[%emt 0:00:03]} 11. Nf3 {[%emt 0:06:06]} a5 {[%emt 0:10:58]} 12. Nh4 {[%emt 0:06:30]} b5 {[%emt 0:11:26]} 13. a4 {[%emt 0:12:34]} b4 {[%emt 0:01:11]} 14. Ne2 {[%emt 0:00:55]} Nd7 {[%emt 0:14:58]} 15. Nf4 {[%emt 0:01:34]} Bc2 {[%emt 0:01:29]} 16. Be2 {[%emt 0:14:34]} Bd6 {[%emt 0:08:57]} 17. Kd2 {[%emt 0:06:43]} Bb3 {[%emt 0:06:11]} 18. Nd3 {[%emt 0:02:05]} Nb6 {[%emt 0:00:19]} 19. Bd1 {[%emt 0:08:32]} Nc4+ {[%emt 0:01:29]} 20. Ke2 {[%emt 0:01:33]} Bxd1+ {[%emt 0:00:10]} 21. Rhxd1 {[%emt 0:01:21]} b3 {[%emt 0:03:43]} 22. Nf5 {[%emt 0:10:34]} Kd7 {[%emt 0:01:01]} 23. h4 {[%emt 0:07:01]} Rag8 {[%emt 0:04:00]} 24. Kf3 {[%emt 0:03:25]} h5 {[%emt 0:04:41]} 25. Rac1 {[%emt 0:01:38]} Ke6 {[%emt 0:08:46]} 26. Nxd6 {[%emt 0:00:05]} Kxd6 {[%emt 0:00:04]} 27. Rc3 {[%emt 0:00:43]} Rb8 {[%emt 0:00:14]} 28. g3 {[%emt 0:02:17]} Rhg8 {[%emt 0:01:31]} 29. Re1 {[%emt 0:01:07]} Rb6 {[%emt 0:03:45]} 30. Ke2 {[%emt 0:01:43]} Ke6 {[%emt 0:01:35]} 31. Rec1 {[%emt 0:00:42]} Kf5 {[%emt 0:01:12]} 32. Rxc4 {[%emt 0:01:25]} dxc4 {[%emt 0:00:27]} 33. Rxc4 {[%emt 0:00:02]} Rd8 {[%emt 0:02:24]} 34. Kf3 {[%emt 0:03:01]} Kg6 {[%emt 0:00:45]} 35. Rc5 {[%emt 0:00:35]} Ra8 {[%emt 0:01:15]} 36. Nf4+ {[%emt 0:02:37]} Kg7 {[%emt 0:00:12]} 37. Nd3 {[%emt 0:00:32]} Kg6 {[%emt 0:00:56]} 38. Ke2 {[%emt 0:00:01]} f5 {[%emt 0:01:16]} 39. Kd2 {[%emt 0:01:45]} Kf6 {[%emt 0:00:16]} 40. Kc3 {[%emt 0:00:58]} Raa6 {[%emt 0:00:41]} 41. Re5 {[%emt 0:00:49]} Ra8 {[%emt 0:00:27]} 42. Nf4 {[%emt 0:02:14]} Rb4 {[%emt 0:00:35]} 43. Nxh5+ {[%emt 0:00:04]} Kg6 {[%emt 0:00:03]} 44. Nf4+ {[%emt 0:00:05]} Kf6 {[%emt 0:00:29]} 45. Rc5 {[%emt 0:00:41]} Rxa4 {[%emt 0:00:50]} 46. Rxc6+ {[%emt 0:00:05]} Kg7 {[%emt 0:00:19]} 47. Kxb3 {[%emt 0:01:11]} Ra1 {[%emt 0:00:29]} 48. Kc2 {[%emt 0:01:28]} Rf1 {[%emt 0:00:52]} 49. Nd3 {[%emt 0:00:03]} a4 {[%emt 0:00:35]} 50. Kd2 {[%emt 0:00:11]} a3 {[%emt 0:00:25]} 51. bxa3 {[%emt 0:00:05]} Rxa3 {[%emt 0:00:04]} 52. Ke2 {[%emt 0:00:07]} Rb1 {[%emt 0:00:52]} 53. Rc7 {[%emt 0:01:06]} Rba1 {[%emt 0:00:36]} 54. Ne5 {[%emt 0:01:36]} R3a2+ {[%emt 0:00:28]} 55. Kf3 {[%emt 0:00:14]} Rf1 {[%emt 0:00:32]} 56. Nd3 {[%emt 0:00:32]} Rd1 {[%emt 0:00:27]} 57. Rc3 {[%emt 0:00:48]} Rad2 {[%emt 0:00:29]} 58. Nf4 {[%emt 0:00:15]} Rf1 {[%emt 0:00:24]} 59. Nh3 {[%emt 0:00:01]} Rh1 {[%emt 0:00:42]} 60. Kg2 {[%emt 0:00:14]} Ra1 {[%emt 0:00:28]} 61. Rc5 {[%emt 0:00:16]} Kf6 {[%emt 0:00:20]} 62. Rc6+ {[%emt 0:00:29]} Kg7 {[%emt 0:00:06]} 63. h5 {[%emt 0:00:38]} f6 {[%emt 0:00:32]} 64. Rc5 {[%emt 0:00:05]} Re1 {[%emt 0:00:18]} 65. Kf3 {[%emt 0:00:20]} Rh1 {[%emt 0:00:13]} 66. Rxf5 {[%emt 0:01:36]} Rh2 {[%emt 0:01:20]} 67. Kg4 {[%emt 0:00:02]} Rd1 {[%emt 0:00:19]} 68. Nf4 {[%emt 0:00:35]} Rf1 {[%emt 0:00:47]} 69. Ne6+ {[%emt 0:00:41]} 1-0

[Event "2nd Guotai Cup Belt Road 2019"]
[Site "Qinhuangdao"]
[Date "2019.04.16"]
[Round "1.7"]
[White "Can, Emre"]
[Black "Zhang, Lanlin"]
[Result "1/2-1/2"]
[ECO "D26"]
[WhiteElo "2599"]
[BlackElo "2192"]
[Annotator "ChessBase"]
[PlyCount "93"]
[EventDate "2019.04.16"]
[EventType "swiss"]
[EventCountry "CHN"]
[SourceTitle "playchess.com"]
[Source "ChessBase"]
[SourceQuality "1"]
[TimeControl "5400+30"]

1. d4 {[%emt 0:00:00]} d5 {[%emt 0:01:11]} 2. Nf3 {[%emt 0:00:09]} Nf6 {[%emt 0:00:32]} 3. c4 {[%emt 0:00:29]} dxc4 {[%emt 0:01:33]} 4. e3 {[%emt 0:00:53]} e6 {[%emt 0:01:27]} 5. Bxc4 {[%emt 0:00:32]} c5 {[%emt 0:01:17]} 6. Qe2 {[%emt 0:03:07]} Nc6 {[%emt 0:04:52]} 7. O-O {[%emt 0:00:36]} Be7 {[%emt 0:04:53]} 8. dxc5 {[%emt 0:07:10]} O-O {[%emt 0:10:12]} 9. e4 {[%emt 0:08:36]} Nd4 {[%emt 0:09:34]} 10. Nxd4 {[%emt 0:02:13]} Qxd4 {[%emt 0:00:08]} 11. Nc3 {[%emt 0:07:17]} Bxc5 {[%emt 0:08:58]} 12. Rd1 {[%emt 0:17:40]} Qe5 {[%emt 0:01:46]} 13. Kh1 {[%emt 0:02:41]} Nh5 {[%emt 0:25:52]} 14. g3 {[%emt 0:19:19]} g6 {[%emt 0:05:21]} 15. Bh6 {[%emt 0:02:34]} Ng7 {[%emt 0:00:47]} 16. Bf4 {[%emt 0:11:10]} Qf6 {[%emt 0:00:26]} 17. e5 {[%emt 0:00:23]} Qe7 {[%emt 0:02:46]} 18. Ne4 {[%emt 0:00:10]} a6 {[%emt 0:03:29]} 19. Nf6+ {[%emt 0:03:40]} Kh8 {[%emt 0:00:07]} 20. Qg4 {[%emt 0:01:14]} b5 {[%emt 0:01:04]} 21. Qh4 {[%emt 0:01:31]} Nh5 {[%emt 0:02:53]} 22. Be2 {[%emt 0:01:16]} Nxf6 {[%emt 0:04:05]} 23. exf6 {[%emt 0:00:15]} Qb7+ {[%emt 0:03:19]} 24. Kg1 {[%emt 0:00:40]} Bd7 {[%emt 0:01:19]} 25. Rd3 {[%emt 0:00:18]} Qe4 {[%emt 0:02:02]} 26. Rxd7 {[%emt 0:02:17]} Qxe2 {[%emt 0:00:15]} 27. Rf1 {[%emt 0:00:15]} Qxb2 {[%emt 0:02:22]} 28. Bg5 {[%emt 0:02:15]} h5 {[%emt 0:00:17]} 29. Bf4 {[%emt 0:00:37]} Kg8 {[%emt 0:00:39]} 30. Qg5 {[%emt 0:00:27]} Rfc8 {[%emt 0:00:53]} 31. Be5 {[%emt 0:01:11]} Qe2 {[%emt 0:00:32]} 32. Bd6 {[%emt 0:02:55]} Bxd6 {[%emt 0:00:31]} 33. Rxd6 {[%emt 0:00:06]} Kh7 {[%emt 0:00:30]} 34. Rd7 {[%emt 0:00:23]} Rf8 {[%emt 0:00:06]} 35. Rc1 {[%emt 0:00:19]} Qg4 {[%emt 0:00:57]} 36. Qe5 {[%emt 0:01:08]} Qf5 {[%emt 0:00:21]} 37. Qd4 {[%emt 0:00:14]} Kg8 {[%emt 0:00:35]} 38. Rcc7 {[%emt 0:01:15]} Rac8 {[%emt 0:00:36]} 39. Rxf7 {[%emt 0:01:02]} Rxc7 {[%emt 0:00:05]} 40. Rxc7 {[%emt 0:00:13]} Qxf6 {[%emt 0:00:29]} 41. Qe3 {[%emt 0:01:05]} e5 {[%emt 0:00:39]} 42. Rb7 {[%emt 0:00:42]} Qf3 {[%emt 0:00:46]} 43. Qb6 {[%emt 0:00:27]} Qd1+ {[%emt 0:00:05]} 44. Kg2 {[%emt 0:00:06]} Qf3+ {[%emt 0:00:15]} 45. Kg1 {[%emt 0:00:10]} Qd1+ {[%emt 0:00:05]} 46. Kg2 {[%emt 0:00:06]} Qf3+ {[%emt 0:00:03]} 47. Kg1 {[%emt 0:00:04]} 1/2-1/2

[Event "2nd Guotai Cup Belt Road 2019"]
[Site "Qinhuangdao"]
[Date "2019.04.16"]
[Round "1.8"]
[White "Li, Yunshan"]
[Black "Oleksiyenko, Mykhaylo"]
[Result "1/2-1/2"]
[ECO "A62"]
[WhiteElo "2191"]
[BlackElo "2598"]
[Annotator "ChessBase"]
[PlyCount "128"]
[EventDate "2019.04.16"]
[EventType "swiss"]
[EventCountry "CHN"]
[SourceTitle "playchess.com"]
[Source "ChessBase"]
[SourceQuality "1"]
[TimeControl "5400+30"]

1. d4 {[%emt 0:00:00]} Nf6 {[%emt 0:00:05]} 2. c4 {[%emt 0:00:00]} e6 {[%emt 0:00:19]} 3. g3 {[%emt 0:00:00]} c5 {[%emt 0:00:33]} 4. d5 {[%emt 0:00:02]} exd5 {[%emt 0:00:12]} 5. cxd5 {[%emt 0:00:04]} d6 {[%emt 0:00:21]} 6. Nc3 {[%emt 0:00:12]} g6 {[%emt 0:00:18]} 7. Bg2 {[%emt 0:00:09]} Bg7 {[%emt 0:00:06]} 8. Nf3 {[%emt 0:00:06]} O-O {[%emt 0:00:07]} 9. O-O {[%emt 0:00:09]} Re8 {[%emt 0:01:06]} 10. Bf4 {[%emt 0:05:11]} Na6 {[%emt 0:01:30]} 11. Re1 {[%emt 0:01:26]} Bg4 {[%emt 0:01:21]} 12. e4 {[%emt 0:11:43]} Nd7 {[%emt 0:02:08]} 13. Qd2 {[%emt 0:10:45]} c4 {[%emt 0:24:40]} 14. Bxd6 {[%emt 0:22:38]} Nac5 {[%emt 0:12:31]} 15. Bxc5 {[%emt 0:05:09]} Nxc5 {[%emt 0:02:24]} 16. e5 {[%emt 0:09:59]} Nd3 {[%emt 0:10:56]} 17. Re4 {[%emt 0:01:07]} Bxf3 {[%emt 0:00:28]} 18. Bxf3 {[%emt 0:00:09]} Nxe5 {[%emt 0:00:04]} 19. Bg2 {[%emt 0:00:32]} Rc8 {[%emt 0:16:37]} 20. Rd1 {[%emt 0:09:26]} Qd6 {[%emt 0:03:37]} 21. Qe2 {[%emt 0:09:34]} Red8 {[%emt 0:04:32]} 22. Nb5 {[%emt 0:04:52]} Qc5 {[%emt 0:12:29]} 23. Na3 {[%emt 0:01:11]} Rxd5 {[%emt 0:02:18]} 24. Rxd5 {[%emt 0:01:00]} Qxd5 {[%emt 0:00:03]} 25. Rxc4 {[%emt 0:01:27]} Qd7 {[%emt 0:00:04]} 26. Rxc8+ {[%emt 0:00:24]} Qxc8 {[%emt 0:00:04]} 27. Qd2 {[%emt 0:00:44]} a6 {[%emt 0:02:47]} 28. b3 {[%emt 0:01:13]} b5 {[%emt 0:00:36]} 29. Nc2 {[%emt 0:00:41]} Qf5 {[%emt 0:01:34]} 30. Qe2 {[%emt 0:03:18]} Bf8 {[%emt 0:00:35]} 31. Qe4 {[%emt 0:01:16]} Qf6 {[%emt 0:00:23]} 32. Ne3 {[%emt 0:00:39]} Bc5 {[%emt 0:00:04]} 33. b4 {[%emt 0:00:34]} Bxe3 {[%emt 0:00:18]} 34. Qxe3 {[%emt 0:00:04]} Nc4 {[%emt 0:01:04]} 35. Qc1 {[%emt 0:00:42]} Qd6 {[%emt 0:00:38]} 36. a3 {[%emt 0:00:24]} Qd4 {[%emt 0:00:28]} 37. Bb7 {[%emt 0:00:47]} Qd7 {[%emt 0:00:11]} 38. Bg2 {[%emt 0:00:30]} h5 {[%emt 0:00:35]} 39. h4 {[%emt 0:00:09]} Qd3 {[%emt 0:00:41]} 40. a4 {[%emt 0:00:37]} Qb3 {[%emt 0:00:36]} 41. axb5 {[%emt 0:00:13]} axb5 {[%emt 0:00:03]} 42. Qe1 {[%emt 0:00:06]} Nd6 {[%emt 0:00:37]} 43. Qd2 {[%emt 0:00:46]} Qb1+ {[%emt 0:00:32]} 44. Kh2 {[%emt 0:00:24]} Nf5 {[%emt 0:00:11]} 45. Bc6 {[%emt 0:01:26]} Qf1 {[%emt 0:01:00]} 46. Be4 {[%emt 0:00:14]} Kh7 {[%emt 0:00:31]} 47. Bxf5 {[%emt 0:00:52]} gxf5 {[%emt 0:00:04]} 48. Qf4 {[%emt 0:00:28]} Qd3 {[%emt 0:00:14]} 49. Qg5 {[%emt 0:00:32]} Qf3 {[%emt 0:00:10]} 50. Qd2 {[%emt 0:00:17]} Kg6 {[%emt 0:01:06]} 51. Qd6+ {[%emt 0:00:35]} f6 {[%emt 0:00:18]} 52. Qc5 {[%emt 0:00:27]} f4 {[%emt 0:00:45]} 53. Qc2+ {[%emt 0:00:29]} f5 {[%emt 0:00:04]} 54. Qd2 {[%emt 0:00:25]} Kf7 {[%emt 0:01:29]} 55. Qd7+ {[%emt 0:00:48]} Kf6 {[%emt 0:00:16]} 56. Qd6+ {[%emt 0:00:08]} Kf7 {[%emt 0:00:04]} 57. Qd7+ {[%emt 0:00:25]} Kf6 {[%emt 0:00:45]} 58. Qd4+ {[%emt 0:00:38]} Kf7 {[%emt 0:00:17]} 59. gxf4 {[%emt 0:00:33]} Qg4 {[%emt 0:00:54]} 60. Qd7+ {[%emt 0:00:10]} Kf6 {[%emt 0:00:21]} 61. Qd6+ {[%emt 0:00:07]} Kf7 {[%emt 0:00:04]} 62. Qc7+ {[%emt 0:01:10]} Kf6 {[%emt 0:00:11]} 63. Qc6+ {[%emt 0:00:19]} Kf7 {[%emt 0:00:21]} 64. Qd7+ {[%emt 0:00:45]} Kf6 {[%emt 0:00:05]} 1/2-1/2

[Event "2nd Guotai Cup Belt Road 2019"]
[Site "Qinhuangdao"]
[Date "2019.04.16"]
[Round "1.9"]
[White "Idani, Pouya"]
[Black "Ma, Lin"]
[Result "1-0"]
[ECO "C44"]
[WhiteElo "2590"]
[BlackElo "2167"]
[Annotator "ChessBase"]
[PlyCount "61"]
[EventDate "2019.04.16"]
[EventType "swiss"]
[EventCountry "CHN"]
[SourceTitle "playchess.com"]
[Source "ChessBase"]
[SourceQuality "1"]
[TimeControl "5400+30"]

1. e4 {[%emt 0:01:11]} e5 {[%emt 0:00:00]} 2. Nf3 {[%emt 0:00:07]} Nf6 {[%emt 0:00:00]} 3. d3 {[%emt 0:00:15]} Nc6 {[%emt 0:01:13]} 4. g3 {[%emt 0:00:05]} Bc5 {[%emt 0:05:59]} 5. Bg2 {[%emt 0:00:06]} d6 {[%emt 0:01:58]} 6. c3 {[%emt 0:00:06]} Bb6 {[%emt 0:01:27]} 7. O-O {[%emt 0:02:45]} O-O {[%emt 0:04:20]} 8. b4 {[%emt 0:06:40]} Re8 {[%emt 0:15:01]} 9. Nbd2 {[%emt 0:02:17]} a6 {[%emt 0:01:06]} 10. Bb2 {[%emt 0:03:26]} h6 {[%emt 0:04:53]} 11. a3 {[%emt 0:01:59]} Nh7 {[%emt 0:15:58]} 12. d4 {[%emt 0:14:54]} Ng5 {[%emt 0:09:30]} 13. Nxg5 {[%emt 0:03:16]} hxg5 {[%emt 0:00:29]} 14. d5 {[%emt 0:11:25]} Nb8 {[%emt 0:08:36]} 15. c4 {[%emt 0:00:09]} c5 {[%emt 0:02:02]} 16. Kh1 {[%emt 0:05:49]} g4 {[%emt 0:09:05]} 17. Nb3 {[%emt 0:07:19]} Qc7 {[%emt 0:04:53]} 18. Rc1 {[%emt 0:01:09]} a5 {[%emt 0:00:25]} 19. f4 {[%emt 0:06:54]} gxf3 {[%emt 0:04:25]} 20. Qxf3 {[%emt 0:00:05]} axb4 {[%emt 0:02:24]} 21. axb4 {[%emt 0:00:06]} Re7 {[%emt 0:03:59]} 22. b5 {[%emt 0:00:50]} Ra4 {[%emt 0:02:07]} 23. g4 {[%emt 0:04:51]} Nd7 {[%emt 0:00:18]} 24. g5 {[%emt 0:07:51]} Nf8 {[%emt 0:00:04]} 25. Bh3 {[%emt 0:00:44]} Bxh3 {[%emt 0:01:20]} 26. Qxh3 {[%emt 0:00:06]} Ng6 {[%emt 0:00:42]} 27. Rc3 {[%emt 0:02:54]} Nf4 {[%emt 0:00:41]} 28. Qh4 {[%emt 0:07:07]} Ba5 {[%emt 0:00:26]} 29. Re3 {[%emt 0:01:25]} Re8 {[%emt 0:00:35]} 30. Rxf4 {[%emt 0:00:15]} exf4 {[%emt 0:00:11]} 31. Rh3 {[%emt 0:00:06]} 1-0

[Event "2nd Guotai Cup Belt Road 2019"]
[Site "Qinhuangdao"]
[Date "2019.04.16"]
[Round "1.10"]
[White "Otgonjargal, Sengeravdan"]
[Black "Xu, Yinglun"]
[Result "0-1"]
[ECO "B82"]
[WhiteElo "2162"]
[BlackElo "2532"]
[Annotator "RC"]
[PlyCount "90"]
[EventDate "2019.04.16"]
[EventType "swiss"]
[EventCountry "CHN"]
[SourceTitle "playchess.com"]
[Source "ChessBase"]
[SourceQuality "1"]
[TimeControl "5400+30"]

1. e4 {[%emt 0:00:58]} c5 {[%emt 0:00:00]} 2. Nf3 {[%emt 0:00:08]} e6 {[%emt 0:00:34]} 3. Nc3 {[%emt 0:02:06]} a6 {[%emt 0:00:56]} 4. d4 {[%emt 0:01:18]} cxd4 {[%emt 0:00:31]} 5. Nxd4 {[%emt 0:00:04]} d6 {[%emt 0:00:23]} 6. Bd3 {[%emt 0:04:20]} Nf6 {[%emt 0:02:26]} 7. O-O {[%emt 0:01:18]} Nbd7 {[%emt 0:01:37]} 8. Kh1 {[%emt 0:01:48]} Qc7 {[%emt 0:01:45]} 9. f4 {[%emt 0:03:25]} Be7 {[%emt 0:01:59]} 10. Qf3 {[%emt 0:02:31]} b5 {[%emt 0:00:16]} 11. a3 {[%emt 0:03:48]} Bb7 {[%emt 0:01:46]} 12. Bd2 {[%emt 0:01:31]} O-O {[%emt 0:05:13]} 13. Qh3 {[%emt 0:03:45]} Nc5 {[%emt 0:01:12]} 14. Rae1 {[%emt 0:01:35]} Rfd8 {[%emt 0:01:24]} 15. Nf3 {[%emt 0:10:08]} e5 {[%emt 0:11:35]} 16. Nh4 {[%emt 0:05:15]} d5 {[%emt 0:09:31]} 17. exd5 {[%emt 0:13:03]} e4 {[%emt 0:00:31]} 18. Nf5 {[%emt 0:08:44]} Bf8 {[%emt 0:01:18]} 19. Nxe4 {[%emt 0:13:30]} Nfxe4 {[%emt 0:02:38]} 20. Rxe4 {[%emt 0:00:40]} Nxe4 {[%emt 0:13:22]} 21. Bxe4 {[%emt 0:00:12]} g6 {[%emt 0:00:05]} 22. Bc3 {[%emt 0:05:08]} Bxd5 {[%emt 0:01:37]} 23. Qh4 {[%emt 0:11:16]} Bxe4 {[%emt 0:00:49]} 24. Qf6 {[%emt 0:01:24]} Qxc3 {[%emt 0:00:05]} 25. Ne7+ {[%emt 0:02:36]} Bxe7 {[%emt 0:00:05]} 26. Qxc3 {[%emt 0:00:05]} Bf8 {[%emt 0:00:35]} 27. Re1 {[%emt 0:00:48]} Rac8 {[%emt 0:01:00]} 28. Qa5 {[%emt 0:00:12]} Bb7 {[%emt 0:00:30]} 29. h4 {[%emt 0:01:25]} Rd6 {[%emt 0:02:29]} 30. Re2 {[%emt 0:00:41]} Rdc6 {[%emt 0:01:28]} 31. c3 {[%emt 0:00:03]} Bd6 {[%emt 0:00:13]} 32. a4 {[%emt 0:00:50]} Bc7 {[%emt 0:02:17]} 33. Qb4 {[%emt 0:00:05]} Rc4 {[%emt 0:00:09]} 34. Qe7 {[%emt 0:00:45]} Rxf4 {[%emt 0:00:07]} 35. Kg1 {[%emt 0:00:44]} Bc6 {[%emt 0:00:31]} 36. Qc5 {[%emt 0:01:02]} Rxh4 {[%emt 0:01:29]} 37. Kf2 {[%emt 0:00:39]} Rf4+ {[%emt 0:00:37]} 38. Kg1 {[%emt 0:00:02]} Rf6 {[%emt 0:01:02]} 39. Qe7 {[%emt 0:00:46]} Rf5 {[%emt 0:01:03]} 40. Rd2 {[%emt 0:00:43]} Re5 {[%emt 0:01:19]} 41. Qf6 {[%emt 0:00:21]} Re6 {[%emt 0:00:54]} 42. Qh4 {[%emt 0:00:13]} Rce8 {[%emt 0:00:21]} 43. Kf2 {[%emt 0:00:57]} Bb6+ {[%emt 0:00:21]} 44. Kg3 {[%emt 0:00:05]} Re3+ {[%emt 0:00:04]} 45. Kh2 {[%emt 0:00:13]} Bc7+ {[%emt 0:00:04] Qe1 [%emt 00:00:36]} 0-1

[Event "2nd Guotai Cup Belt Road 2019"]
[Site "Qinhuangdao"]
[Date "2019.04.19"]
[Round "4.2"]
[White "Xu, Yinglun"]
[Black "Yilmaz, Mustafa"]
[Result "1/2-1/2"]
[ECO "D38"]
[WhiteElo "2532"]
[BlackElo "2631"]
[Annotator "ChessBase"]
[PlyCount "41"]
[EventDate "2019.04.16"]
[EventType "swiss"]
[EventCountry "CHN"]
[SourceTitle "playchess.com"]
[Source "ChessBase"]
[SourceQuality "1"]
[TimeControl "5400+30"]

1. Nf3 {[%emt 0:00:00]} d5 {[%emt 0:08:00]} 2. d4 {[%emt 0:00:00]} Nf6 {[%emt 0:00:04]} 3. c4 {[%emt 0:00:00]} e6 {[%emt 0:00:06]} 4. Nc3 {[%emt 0:00:04]} Bb4 {[%emt 0:00:07]} 5. Bg5 {[%emt 0:03:34]} h6 {[%emt 0:01:09]} 6. Bxf6 {[%emt 0:00:08]} Qxf6 {[%emt 0:00:02]} 7. e3 {[%emt 0:00:10]} O-O {[%emt 0:00:15]} 8. Qb3 {[%emt 0:01:06]} c5 {[%emt 0:01:39]} 9. cxd5 {[%emt 0:00:28]} exd5 {[%emt 0:00:43]} 10. dxc5 {[%emt 0:00:06]} Bxc3+ {[%emt 0:00:57]} 11. Qxc3 {[%emt 0:00:07]} Qxc3+ {[%emt 0:00:04]} 12. bxc3 {[%emt 0:00:03]} Nd7 {[%emt 0:01:00]} 13. Rd1 {[%emt 0:01:14]} Nf6 {[%emt 0:01:11]} 14. Nd4 {[%emt 0:12:00]} Bd7 {[%emt 0:02:55]} 15. f3 {[%emt 0:32:14]} Rfc8 {[%emt 0:03:00]} 16. Rb1 {[%emt 0:00:06]} Rab8 {[%emt 0:04:54]} 17. Nb3 {[%emt 0:02:10]} Ba4 {[%emt 0:05:29]} 18. Bd3 {[%emt 0:00:24]} g6 {[%emt 0:08:27]} 19. Kd2 {[%emt 0:04:00]} Nd7 {[%emt 0:02:38]} 20. Rhc1 {[%emt 0:06:26]} Nxc5 {[%emt 0:02:14]} 21. Nxc5 {[%emt 0:00:45]} 1/2-1/2

[Event "2nd Guotai Cup Belt Road 2019"]
[Site "Qinhuangdao"]
[Date "2019.04.19"]
[Round "4.3"]
[White "Antipov, Mikhail Al."]
[Black "Peng, Hongchi"]
[Result "1-0"]
[ECO "D78"]
[WhiteElo "2605"]
[BlackElo "2347"]
[Annotator "RC"]
[PlyCount "59"]
[EventDate "2019.04.16"]
[EventType "swiss"]
[EventCountry "CHN"]
[SourceTitle "playchess.com"]
[Source "ChessBase"]
[SourceQuality "1"]
[TimeControl "5400+30"]

1. g3 {[%emt 0:02:29]} d5 {[%emt 0:00:21]} 2. Nf3 {[%emt 0:00:08]} g6 {[%emt 0:00:22]} 3. c4 {[%emt 0:00:39]} c6 {[%emt 0:00:09]} 4. d4 {[%emt 0:02:20]} Bg7 {[%emt 0:00:12]} 5. Bg2 {[%emt 0:00:34]} Nf6 {[%emt 0:00:08]} 6. O-O {[%emt 0:01:14]} O-O {[%emt 0:00:07]} 7. b3 {[%emt 0:01:09]} b6 {[%emt 0:03:36]} 8. Bb2 {[%emt 0:00:29]} Bb7 {[%emt 0:07:08]} 9. Qc2 {[%emt 0:14:46]} Na6 {[%emt 0:11:18]} 10. Nc3 {[%emt 0:04:55]} c5 {[%emt 0:02:13]} 11. dxc5 {[%emt 0:19:57]} dxc4 {[%emt 0:04:58]} 12. bxc4 {[%emt 0:03:21]} Nxc5 {[%emt 0:02:34]} 13. Rfd1 {[%emt 0:00:07]} Qc8 {[%emt 0:01:21]} 14. Nd5 {[%emt 0:02:55]} Nxd5 {[%emt 0:11:12]} 15. cxd5 {[%emt 0:00:26]} Ne4 {[%emt 0:09:26]} 16. Qxe4 {[%emt 0:00:41]} Bxb2 {[%emt 0:00:04]} 17. Rab1 {[%emt 0:00:06]} Bf6 {[%emt 0:00:22]} 18. Qf4 {[%emt 0:11:01]} Qb8 {[%emt 0:20:33]} 19. d6 {[%emt 0:07:21]} Kg7 {[%emt 0:08:47]} 20. e4 {[%emt 0:00:56]} exd6 {[%emt 0:01:47]} 21. Rxd6 {[%emt 0:00:07]} Bd8 {[%emt 0:00:11]} 22. Rc1 {[%emt 0:05:51]} Re8 {[%emt 0:02:23]} 23. Ne5 {[%emt 0:02:06]} f5 {[%emt 0:05:41]} 24. Rd7+ {[%emt 0:04:15]} Kg8 {[%emt 0:01:39]} 25. Qh6 {[%emt 0:03:34]} Re7 {[%emt 0:00:11]} 26. Nxg6 {[%emt 0:00:05]} hxg6 {[%emt 0:00:22]} 27. Qxg6+ {[%emt 0:00:06]} Kf8 {[%emt 0:00:25]} 28. Qxf5+ {[%emt 0:01:36]} Kg7 {[%emt 0:00:03]} 29. Rcd1 {[%emt 0:01:35]} Bc6 {[%emt 0:00:55]} 30. R1d6 {[%emt 0:01:07]} 1-0

[Event "2nd Guotai Cup Belt Road 2019"]
[Site "Qinhuangdao"]
[Date "2019.04.19"]
[Round "4.7"]
[White "Oleksiyenko, Mykhaylo"]
[Black "Chen, Qi b"]
[Result "1/2-1/2"]
[ECO "C54"]
[WhiteElo "2598"]
[BlackElo "2424"]
[Annotator "RC"]
[PlyCount "30"]
[EventDate "2019.04.16"]
[EventType "swiss"]
[EventCountry "CHN"]
[SourceTitle "playchess.com"]
[Source "ChessBase"]
[SourceQuality "1"]
[TimeControl "5400+30"]

1. e4 {[%emt 0:01:41]} e5 {[%emt 0:00:00]} 2. Nf3 {[%emt 0:00:02]} Nc6 {[%emt 0:00:00]} 3. Bc4 {[%emt 0:00:47]} Bc5 {[%emt 0:00:00]} 4. c3 {[%emt 0:00:17]} Nf6 {[%emt 0:00:10]} 5. d4 {[%emt 0:00:35]} exd4 {[%emt 0:00:06]} 6. e5 {[%emt 0:00:05]} d5 {[%emt 0:00:38]} 7. Bb5 {[%emt 0:00:10]} Ne4 {[%emt 0:00:18]} 8. cxd4 {[%emt 0:00:05]} Bb6 {[%emt 0:00:12]} 9. Nc3 {[%emt 0:00:11]} Bg4 {[%emt 0:01:15]} 10. Be3 {[%emt 0:03:30]} O-O {[%emt 0:00:32]} 11. h3 {[%emt 0:00:17]} Bh5 {[%emt 0:00:15]} 12. Qc2 {[%emt 0:00:13]} Bxf3 {[%emt 0:07:35]} 13. gxf3 {[%emt 0:01:13]} Ng5 {[%emt 0:00:06]} 14. O-O-O {[%emt 0:04:18]} Nxf3 {[%emt 0:00:17]} 15. Bxc6 {[%emt 0:00:40]} bxc6 {[%emt 0:00:04]} 1/2-1/2